Workbook

Sheet 2023年原始数据
A1: 地市 | B1: 目标值 | N1: 用户数 | Z1: 投诉量完成值 | AL1: 投诉量核减值（1月3单加权重，2-5月减免2G简网3单加权重） | AX1: 投诉率完成 | BJ1: 投诉率核减值
A2: 地市 | B2: 1月 | C2: 2月 | D2: 3月 | E2: 4月 | F2: 5月 | G2: 6月 | H2: 7月 | I2: 8月 | J2: 9月 | K2: 10月 | L2: 11月 | M2: 12月 | N2: 1月 | O2: 2月 | P2: 3月 | Q2: 4月 | R2: 5月 | S2: 6月 | T2: 7月 | U2: 8月 | V2: 9月 | W2: 10月 | X2: 11月 | Y2: 12月 | Z2: 1月 | AA2: 2月 | AB2: 3月 | AC2: 4月 | AD2: 5月 | AE2: 6月 | AF2: 7月 | AG2: 8月 | AH2: 9月 | AI2: 10月 | AJ2: 11月 | AK2: 12月 | AL2: 1月 | AM2: 2月 | AN2: 3月 | AO2: 4月 | AP2: 5月 | AQ2: 6月 | AR2: 7月 | AS2: 8月 | AT2: 9月 | AU2: 10月 | AV2: 11月 | AW2: 12月 | AX2: 1月 | AY2: 2月 | AZ2: 3月 | BA2: 4月 | BB2: 5月 | BC2: 6月 | BD2: 7月 | BE2: 8月 | BF2: 9月 | BG2: 10月 | BH2: 11月 | BI2: 12月 | BJ2: 1月 | BK2: 2月 | BL2: 3月 | BM2: 4月 | BN2: 5月 | BO2: 6月 | BP2: 7月 | BQ2: 8月 | BR2: 9月 | BS2: 10月 | BT2: 11月 | BU2: 12月
A3: 保定 | B3: 3.2 | C3: 3.5 | D3: 4.3 | E3: 4.5 | F3: 4.3 | G3: 4.6 | H3: 4.9 | I3: 4.3 | J3: 4.3 | K3: 3.1 | L3: 3.1 | M3: 2.9 | N3: 247.54 | O3: 248.74 | P3: 248.76 | Z3: 746 | AA3: 928 | AB3: 796 | AL3: 754 | AM3: 678 | AN3: 707 | AX3: =Z3/N3 -> 3.013654359 | AY3: =AA3/O3 -> 3.730803248 | AZ3: =AB3/P3 -> 3.199871362 | BJ3: =AL3/N3 -> 3.045972368 | BK3: =AM3/O3 -> 2.725737718 | BL3: =AN3/P3 -> 2.8420968
A4: 沧州 | B4: 3.2 | C4: 3.5 | D4: 4.2 | E4: 4.4 | F4: 4.2 | G4: 4.4 | H4: 4.8 | I4: 4.2 | J4: 4.3 | K4: 3.1 | L4: 3.1 | M4: 2.9 | N4: 231.41 | O4: 232.6 | P4: 232.91 | Z4: 665 | AA4: 692 | AB4: 833 | AL4: 668 | AM4: 501 | AN4: 659 | AX4: =Z4/N4 -> 2.873687395 | AY4: =AA4/O4 -> 2.975064488 | AZ4: =AB4/P4 -> 3.576488772 | BJ4: =AL4/N4 -> 2.886651398 | BK4: =AM4/O4 -> 2.153912296 | BL4: =AN4/P4 -> 2.829419089
A5: 承德 | B5: 3.2 | C5: 3.5 | D5: 4.2 | E5: 4.4 | F5: 4.3 | G5: 4.4 | H5: 4.8 | I5: 4.2 | J5: 4.3 | K5: 3 | L5: 3 | M5: 2.8 | N5: 101.55 | O5: 101.81 | P5: 101.93 | Z5: 273 | AA5: 250 | AB5: 319 | AL5: 275 | AM5: 231 | AN5: 304 | AX5: 2.688330871 | AY5: 2.455554464 | AZ5: 3.129598744 | BJ5: 2.708025603 | BK5: 2.268932325 | BL5: 2.982438929
A6: 邯郸 | B6: 3.1 | C6: 3.4 | D6: 4.1 | E6: 4.4 | F6: 4.2 | G6: 4.4 | H6: 4.7 | I6: 4.1 | J6: 4.2 | K6: 3 | L6: 3 | M6: 2.9 | N6: 272.19 | O6: 272.58 | P6: 272.59 | Z6: 709 | AA6: 575 | AB6: 824 | AL6: 726 | AM6: 564 | AN6: 800 | AX6: 2.604798119 | AY6: 2.109472448 | AZ6: 3.022854837 | BJ6: 2.667254491 | BK6: 2.069117323 | BL6: 2.934810521
A7: 衡水 | B7: 2.4 | C7: 2.7 | D7: 3.2 | E7: 3.4 | F7: 3.2 | G7: 3.4 | H7: 3.6 | I7: 3.2 | J7: 3.3 | K7: 2.5 | L7: 2.5 | M7: 2.4 | N7: 153.78 | O7: 153.94 | P7: 154.13 | Z7: 344 | AA7: 352 | AB7: 397 | AL7: 349 | AM7: 308 | AN7: 353 | AX7: 2.236961894 | AY7: 2.286605171 | AZ7: 2.575747745 | BJ7: 2.269475875 | BK7: 2.000779524 | BL7: 2.290274444
A8: 廊坊 | B8: 3.3 | C8: 3.6 | D8: 4.4 | E8: 4.7 | F8: 4.5 | G8: 4.7 | H8: 5.1 | I8: 4.4 | J8: 4.4 | K8: 3.1 | L8: 3.1 | M8: 3 | N8: 162.15 | O8: 163.1 | P8: 163.68 | Z8: 473 | AA8: 484 | AB8: 688 | AL8: 476 | AM8: 477 | AN8: 680 | AX8: 2.917052112 | AY8: 2.967504598 | AZ8: 4.203323558 | BJ8: 2.9355535 | BK8: 2.924586143 | BL8: 4.154447703
A9: 秦皇岛 | B9: 3.1 | C9: 3.4 | D9: 4.1 | E9: 4.3 | F9: 4.1 | G9: 4.3 | H9: 4.7 | I9: 4.1 | J9: 4.2 | K9: 3.1 | L9: 3 | M9: 2.9 | N9: 103.26 | O9: 103.12 | P9: 103.12 | Z9: 294 | AA9: 279 | AB9: 384 | AL9: 296 | AM9: 277 | AN9: 386 | AX9: 2.847181871 | AY9: 2.705585725 | AZ9: 3.723816912 | BJ9: 2.866550455 | BK9: 2.686190846 | BL9: 3.743211792
A10: 石家庄 | B10: 3.4 | C10: 3.7 | D10: 4.5 | E10: 4.8 | F10: 4.6 | G10: 4.8 | H10: 5.2 | I10: 4.5 | J10: 4.5 | K10: 3.1 | L10: 3.1 | M10: 2.9 | N10: 362.69 | O10: 364.87 | P10: 366.35 | Z10: 1087 | AA10: 1646 | AB10: 1960 | AL10: 1107 | AM10: 1268 | AN10: 1567 | AX10: 2.997049822 | AY10: 4.511195768 | AZ10: 5.350075065 | BJ10: 3.052193333 | BK10: 3.475210349 | BL10: 4.277330422
A11: 唐山 | B11: 3.2 | C11: 3.5 | D11: 4.3 | E11: 4.5 | F11: 4.3 | G11: 4.5 | H11: 4.9 | I11: 4.2 | J11: 4.3 | K11: 3.1 | L11: 3.1 | M11: 3 | N11: 242.8 | O11: 243.52 | P11: 244.01 | Z11: 606 | AA11: 670 | AB11: 886 | AL11: 616 | AM11: 649 | AN11: 870 | AX11: 2.495881384 | AY11: 2.75131406 | AZ11: 3.63099873 | BJ11: 2.537067545 | BK11: 2.665078844 | BL11: 3.565427646
A12: 邢台 | B12: 2.9 | C12: 3.1 | D12: 3.8 | E12: 4 | F12: 3.8 | G12: 4 | H12: 4.3 | I12: 3.8 | J12: 3.9 | K12: 3 | L12: 3 | M12: 2.8 | N12: 174.9 | O12: 175.97 | P12: 176.5 | Z12: 465 | AA12: 425 | AB12: 545 | AL12: 469 | AM12: 417 | AN12: 528 | AX12: 2.658662093 | AY12: 2.415184406 | AZ12: 3.087818697 | BJ12: 2.681532304 | BK12: 2.369722112 | BL12: 2.991501416
A13: 雄安 | B13: 4.3 | C13: 4.7 | D13: 5.7 | E13: 6 | F13: 5.8 | G13: 6.1 | H13: 6.6 | I13: 5.7 | J13: 5.7 | K13: 3.7 | L13: 3.7 | M13: 3.5 | N13: 25.26 | O13: 25.59 | P13: 25.82 | Z13: 59 | AA13: 101 | AB13: 130 | AL13: 59 | AM13: 100 | AN13: 128 | AX13: 2.33570863 | AY13: 3.94685424 | AZ13: 5.0348567 | BJ13: 2.33570863 | BK13: 3.907776475 | BL13: 4.957397366
A14: 张家口 | B14: 3.2 | C14: 3.4 | D14: 4.2 | E14: 4.4 | F14: 4.2 | G14: 4.4 | H14: 4.8 | I14: 4.2 | J14: 4.2 | K14: 3 | L14: 3 | M14: 2.8 | N14: 95.66 | O14: 96.37 | P14: 96.83 | Z14: 314 | AA14: 254 | AB14: 325 | AL14: 314 | AM14: 237 | AN14: 295 | AX14: 3.282458708 | AY14: 2.635675003 | AZ14: 3.356397811 | BJ14: 3.282458708 | BK14: 2.459271558 | BL14: 3.046576474
A15: 全省 | B15: 3.2 | C15: 3.4 | D15: 4.2 | E15: 4.4 | F15: 4.2 | G15: 4.4 | H15: 4.8 | I15: 4.2 | J15: 4.2 | K15: 3 | L15: 3 | M15: 2.9 | N15: 2173.19 | O15: 2182.21 | P15: 2186.63 | Z15: 6035 | AA15: 6656 | AB15: 8087 | AL15: 6109 | AM15: 5707 | AN15: 7277 | AX15: 2.777023638 | AY15: 3.050118916 | AZ15: 3.698385186 | BJ15: 2.811074964 | BK15: 2.61523868 | BL15: 3.327952146

Sheet 2022年原始数据
A1: 地市 | B1: 目标值 | N1: 用户数 | Z1: 投诉量完成值 | AL1: 投诉量核减值（1-7去除2G，8-11去除2G,3单加权重,12月3单加权重） | AX1: 投诉率完成 | BJ1: 投诉率核减值
A2: 地市 | B2: 1月 | C2: 2月 | D2: 3月 | E2: 4月 | F2: 5月 | G2: 6月 | H2: 7月 | I2: 8月 | J2: 9月 | K2: 10月 | L2: 11月 | M2: 12月 | N2: 1月 | O2: 2月 | P2: 3月 | Q2: 4月 | R2: 5月 | S2: 6月 | T2: 7月 | U2: 8月 | V2: 9月 | W2: 10月 | X2: 11月 | Y2: 12月 | Z2: 1月 | AA2: 2月 | AB2: 3月 | AC2: 4月 | AD2: 5月 | AE2: 6月 | AF2: 7月 | AG2: 8月 | AH2: 9月 | AI2: 10月 | AJ2: 11月 | AK2: 12月 | AL2: 1月 | AM2: 2月 | AN2: 3月 | AO2: 4月 | AP2: 5月 | AQ2: 6月 | AR2: 7月 | AS2: 8月 | AT2: 9月 | AU2: 10月 | AV2: 11月 | AW2: 12月 | AX2: 1月 | AY2: 2月 | AZ2: 3月 | BA2: 4月 | BB2: 5月 | BC2: 6月 | BD2: 7月 | BE2: 8月 | BF2: 9月 | BG2: 10月 | BH2: 11月 | BI2: 12月 | BJ2: 1月 | BK2: 2月 | BL2: 3月 | BM2: 4月 | BN2: 5月 | BO2: 6月 | BP2: 7月 | BQ2: 8月 | BR2: 9月 | BS2: 10月 | BT2: 11月 | BU2: 12月 | BW2: 地市
A3: 保定 | B3: 6.15 | C3: 5.93 | D3: 7.25 | E3: 7.47 | F3: 7.68 | G3: 8.34 | H3: 7.47 | I3: 6.4676 | J3: 6.0628 | K3: 4.2964 | L3: 4.05 | M3: 3.8 | N3: 243.39 | O3: 243.11 | P3: 245.06 | Q3: 245.06 | R3: 244.72 | S3: 244.4 | T3: 244.58 | U3: 244.96 | V3: 245.9 | W3: 246.82 | X3: 246.87 | Y3: 246.41 | Z3: 1668 | AA3: 1068 | AB3: 1405 | AC3: 1248 | AD3: 1335 | AE3: 1378 | AF3: 1462 | AG3: 1490 | AH3: 1125 | AI3: 874 | AJ3: 927 | AK3: 765 | AL3: 1446 | AM3: 964 | AN3: 1343 | AO3: 1207 | AP3: 1297 | AQ3: 1331 | AR3: 1411 | AS3: 1409 | AT3: 1115 | AU3: 870 | AV3: 920 | AW3: 785 | AX3: =Z3/N3 -> 6.85319857 | AY3: =AA3/O3 -> 4.393073094 | AZ3: 5.733289807 | BA3: 5.092630376 | BB3: 5.455214122 | BC3: 5.638297872 | BD3: 5.977594243 | BE3: 6.082625735 | BF3: 4.5750305 | BG3: 3.541042055 | BH3: 3.75501276 | BI3: 3.104581795 | BJ3: =AL3/N3 -> 5.941082214 | BK3: =AM3/O3 -> 3.965283205 | BL3: 5.480290541 | BM3: 4.92532441 | BN3: 5.299934619 | BO3: 5.44599018 | BP3: 5.769073514 | BQ3: 5.751959504 | BR3: 4.534363562 | BS3: 3.524835913 | BT3: =AV3/X3 -> 3.726657755 | BU3: 3.185747332 | BW3: 保定 | BX3: =AVERAGE(BS3:BU3) -> 3.479080333
A4: 沧州 | B4: 4.89 | C4: 4.77 | D4: 5.46 | E4: 5.57 | F4: 5.68 | G4: 6.02 | H4: 5.57 | I4: 4.9128 | J4: 4.7012 | K4: 4.1768 | L4: 4.05 | M4: 3.92 | N4: 227.33 | O4: 226.93 | P4: 227.85 | Q4: 227.85 | R4: 227.86 | S4: 228.67 | T4: 229.6 | U4: 230.38 | V4: 230.37 | W4: 230.81 | X4: 230.57 | Y4: 230.81 | Z4: 991 | AA4: 692 | AB4: 805 | AC4: 892 | AD4: 925 | AE4: 1063 | AF4: 1236 | AG4: 1261 | AH4: 928 | AI4: 906 | AJ4: 857 | AK4: 666 | AL4: 933 | AM4: 671 | AN4: 783 | AO4: 875 | AP4: 908 | AQ4: 992 | AR4: 1144 | AS4: 1113 | AT4: 872 | AU4: 882 | AV4: 817 | AW4: 676 | AX4: =Z4/N4 -> 4.359301456 | AY4: 3.049398493 | AZ4: 3.533026114 | BA4: 3.914856265 | BB4: 4.059510226 | BC4: 4.648620283 | BD4: 5.383275261 | BE4: 5.473565414 | BF4: 4.028302296 | BG4: 3.925306529 | BH4: 3.716875569 | BI4: 2.88549023 | BJ4: =AL4/N4 -> 4.10416575 | BK4: 2.956858943 | BL4: 3.436471363 | BM4: 3.840245776 | BN4: 3.984903011 | BO4: 4.338129182 | BP4: 4.982578397 | BQ4: 4.831148537 | BR4: 3.785215089 | BS4: 3.821324899 | BT4: =AV4/X4 -> 3.543392462 | BU4: 2.928815909 | BW4: 沧州 | BX4: =AVERAGE(BS4:BU4) -> 3.431177757
A5: 承德 | B5: 5.23 | C5: 5.07 | D5: 6.01 | E5: 6.16 | F5: 6.32 | G5: 6.79 | H5: 6.16 | I5: 5.382 | J5: 5.0968 | K5: 4.0388 | L5: 3.86 | M5: 3.69 | N5: 101.04 | O5: 100.62 | P5: 101.25 | Q5: 101.25 | R5: 101.23 | S5: 101.42 | T5: 101.45 | U5: 101.37 | V5: 102.13 | W5: 102.14 | X5: 101.93 | Y5: 101.57 | Z5: 546 | AA5: 460 | AB5: 436 | AC5: 417 | AD5: 503 | AE5: 545 | AF5: 702 | AG5: 648 | AH5: 404 | AI5: 307 | AJ5: 279 | AK5: 314 | AL5: 531 | AM5: 443 | AN5: 434 | AO5: 411 | AP5: 493 | AQ5: 497 | AR5: 604 | AS5: 453 | AT5: 349 | AU5: 307 | AV5: 277 | AW5: 314 | AX5: 5.403800475 | AY5: 4.571655734 | AZ5: 4.30617284 | BA5: 4.118518519 | BB5: 4.968882742 | BC5: 5.373693552 | BD5: 6.91966486 | BE5: 6.392423794 | BF5: 3.955742681 | BG5: 3.005678481 | BH5: 2.737172569 | BI5: 3.091464015 | BJ5: 5.255344418 | BK5: 4.40270324 | BL5: 4.286419753 | BM5: 4.059259259 | BN5: 4.870097797 | BO5: 4.90041412 | BP5: 5.953671759 | BQ5: 4.468777745 | BR5: 3.417213356 | BS5: 3.005678481 | BT5: 2.717551261 | BU5: 3.091464015 | BW5: 承德 | BX5: 2.938231252
A6: 邯郸 | B6: 4.84 | C6: 4.73 | D6: 5.38 | E6: 5.49 | F6: 5.6 | G6: 5.93 | H6: 5.49 | I6: 4.8576 | J6: 4.6552 | K6: 4.1768 | L6: 4.05 | M6: 3.92 | N6: 258.92 | O6: 259.72 | P6: 264.74 | Q6: 264.74 | R6: 265.33 | S6: 266.05 | T6: 266.92 | U6: 268 | V6: 269.15 | W6: 270.25 | X6: 270.42 | Y6: 270.26 | Z6: 903 | AA6: 766 | AB6: 919 | AC6: 879 | AD6: 868 | AE6: 857 | AF6: 985 | AG6: 1038 | AH6: 830 | AI6: 847 | AJ6: 822 | AK6: 755 | AL6: 829 | AM6: 730 | AN6: 884 | AO6: 869 | AP6: 853 | AQ6: 854 | AR6: 973 | AS6: 1039 | AT6: 827 | AU6: 847 | AV6: 833 | AW6: 787 | AX6: 3.487563726 | AY6: 2.949330048 | AZ6: 3.471330362 | BA6: 3.320238725 | BB6: 3.271397882 | BC6: 3.221199023 | BD6: 3.690244268 | BE6: 3.873134328 | BF6: 3.083782278 | BG6: 3.13413506 | BH6: 3.039715997 | BI6: 2.793606157 | BJ6: 3.201761162 | BK6: 2.810719236 | BL6: 3.339125179 | BM6: 3.282465816 | BN6: 3.214864508 | BO6: 3.209922947 | BP6: 3.645286977 | BQ6: 3.876865672 | BR6: 3.072636077 | BS6: 3.13413506 | BT6: 3.080393462 | BU6: 2.912010656 | BW6: 邯郸 | BX6: 3.042179726
A7: 衡水 | B7: 4.06 | C7: 3.99 | D7: 4.42 | E7: 4.49 | F7: 4.56 | G7: 4.78 | H7: 4.49 | I7: 4.002 | J7: 3.864 | K7: 3.7628 | L7: 3.68 | M7: 3.6 | N7: 152.13 | O7: 151.93 | P7: 152.17 | Q7: 152.17 | R7: 152.73 | S7: 152.6 | T7: 153.07 | U7: 153.1 | V7: 152.9 | W7: 152.44 | X7: 153.41 | Y7: 153.13 | Z7: 540 | AA7: 357 | AB7: 347 | AC7: 457 | AD7: 373 | AE7: 367 | AF7: 437 | AG7: 455 | AH7: 325 | AI7: 357 | AJ7: 366 | AK7: 327 | AL7: 441 | AM7: 328 | AN7: 314 | AO7: 436 | AP7: 363 | AQ7: 354 | AR7: 415 | AS7: 446 | AT7: 313 | AU7: 354 | AV7: 358 | AW7: 335 | AX7: 3.54959574 | AY7: 2.34976634 | AZ7: 2.280344352 | BA7: 3.003220083 | BB7: 2.442218294 | BC7: 2.404980341 | BD7: 2.854902986 | BE7: 2.971913782 | BF7: 2.125572269 | BG7: 2.341905012 | BH7: 2.38576364 | BI7: 2.135440475 | BJ7: 2.898836521 | BK7: 2.158888962 | BL7: 2.063481632 | BM7: 2.865216534 | BN7: 2.376743272 | BO7: 2.319790301 | BP7: 2.711177892 | BQ7: 2.913128674 | BR7: 2.047089601 | BS7: 2.322225138 | BT7: 2.333615801 | BU7: 2.187683667 | BW7: 衡水 | BX7: 2.281174869
A8: 廊坊 | B8: 5.78 | C8: 5.6 | D8: 6.65 | E8: 6.82 | F8: 7 | G8: 7.52 | H8: 6.82 | I8: 5.9524 | J8: 5.6304 | K8: 4.4344 | L8: 4.23 | M8: 4.03 | N8: 157.34 | O8: 157.18 | P8: 157.85 | Q8: 157.85 | R8: 158.74 | S8: 159.35 | T8: 159.74 | U8: 160.59 | V8: 161.77 | W8: 162.45 | X8: 162.43 | Y8: 161.97 | Z8: 809 | AA8: 608 | AB8: 888 | AC8: 772 | AD8: 899 | AE8: 955 | AF8: 1191 | AG8: 1019 | AH8: 869 | AI8: 697 | AJ8: 663 | AK8: 529 | AL8: 786 | AM8: 603 | AN8: 882 | AO8: 767 | AP8: 893 | AQ8: 942 | AR8: 1183 | AS8: 1018 | AT8: 869 | AU8: 692 | AV8: 624 | AW8: 545 | AX8: 5.141731283 | AY8: 3.868176613 | AZ8: 5.625593918 | BA8: 4.890719037 | BB8: 5.663348872 | BC8: 5.993096956 | BD8: 7.455865782 | BE8: 6.345351516 | BF8: 5.371824195 | BG8: 4.290550939 | BH8: 4.081758296 | BI8: 3.26603692 | BJ8: 4.995551036 | BK8: 3.83636595 | BL8: 5.587583149 | BM8: 4.859043396 | BN8: 5.625551216 | BO8: 5.911515532 | BP8: 7.4057844 | BQ8: 6.339124478 | BR8: 5.371824195 | BS8: 4.259772238 | BT8: 3.841654867 | BU8: 3.364820646 | BW8: 廊坊 | BX8: 3.822082583
A9: 秦皇岛 | B9: 4.75 | C9: 4.65 | D9: 5.27 | E9: 5.37 | F9: 5.47 | G9: 5.78 | H9: 5.37 | I9: 4.7472 | J9: 4.5632 | K9: 4.1676 | L9: 4.05 | M9: 3.93 | N9: 104.65 | O9: 104.46 | P9: 105.14 | Q9: 105.14 | R9: 104.82 | S9: 104.98 | T9: 104.67 | U9: 104.53 | V9: 104.47 | W9: 103.98 | X9: 103.47 | Y9: 103.2 | Z9: 511 | AA9: 377 | AB9: 395 | AC9: 400 | AD9: 381 | AE9: 369 | AF9: 484 | AG9: 487 | AH9: 436 | AI9: 406 | AJ9: 347 | AK9: 324 | AL9: 507 | AM9: 375 | AN9: 395 | AO9: 397 | AP9: 376 | AQ9: 368 | AR9: 476 | AS9: 491 | AT9: 445 | AU9: 417 | AV9: 349 | AW9: 326 | AX9: 4.882943144 | AY9: 3.609036952 | AZ9: 3.756895568 | BA9: 3.804451208 | BB9: 3.634802519 | BC9: 3.51495523 | BD9: 4.624056559 | BE9: 4.658949584 | BF9: 4.173446923 | BG9: 3.904597038 | BH9: 3.353629071 | BI9: 3.139534884 | BJ9: 4.844720497 | BK9: 3.589890867 | BL9: 3.756895568 | BM9: 3.775917824 | BN9: 3.587101698 | BO9: 3.505429606 | BP9: 4.547625872 | BQ9: 4.69721611 | BR9: 4.259596056 | BS9: 4.010386613 | BT9: 3.372958345 | BU9: 3.158914729 | BW9: 秦皇岛 | BX9: 3.514086562
A10: 石家庄 | B10: 5.57 | C10: 5.4 | D10: 6.42 | E10: 6.59 | F10: 6.76 | G10: 7.27 | H10: 6.59 | I10: 5.75 | J10: 5.4372 | K10: 4.2412 | L10: 4.05 | M10: 3.85 | N10: 349.94 | O10: 350.18 | P10: 353.84 | Q10: 353.84 | R10: 354.45 | S10: 355.05 | T10: 355.37 | U10: 355.65 | V10: 358.56 | W10: 362.62 | X10: 363.05 | Y10: 362.17 | Z10: 1854 | AA10: 1289 | AB10: 2334 | AC10: 2365 | AD10: 2270 | AE10: 2764 | AF10: 2663 | AG10: 2043 | AH10: 1807 | AI10: 1392 | AJ10: 1572 | AK10: 1101 | AL10: 1840 | AM10: 1281 | AN10: 2317 | AO10: 2215 | AP10: 2145 | AQ10: 2167 | AR10: 2167 | AS10: 1865 | AT10: 1724 | AU10: 1345 | AV10: 1467 | AW10: 1111 | AX10: 5.298051094 | AY10: 3.680964076 | AZ10: 6.596201673 | BA10: 6.683811892 | BB10: 6.404288334 | BC10: 7.78481904 | BD10: 7.493598222 | BE10: 5.744411641 | BF10: 5.039602856 | BG10: 3.838729248 | BH10: 4.329982096 | BI10: 3.040008836 | BJ10: 5.258044236 | BK10: 3.658118682 | BL10: 6.548157359 | BM10: 6.259891476 | BN10: 6.051629285 | BO10: 6.103365723 | BP10: 6.097869826 | BQ10: 5.243919584 | BR10: 4.808121374 | BS10: 3.709116982 | BT10: 4.040765735 | BU10: 3.067620178 | BW10: 石家庄 | BX10: 3.605834298
A11: 唐山 | B11: 5.57 | C11: 5.4 | D11: 6.43 | E11: 6.6 | F11: 6.77 | G11: 7.29 | H11: 6.6 | I11: 5.7592 | J11: 5.4464 | K11: 4.2412 | L11: 4.05 | M11: 3.85 | N11: 238.97 | O11: 237.45 | P11: 239.63 | Q11: 239.63 | R11: 239.59 | S11: 239.92 | T11: 240.34 | U11: 241.07 | V11: 242.68 | W11: 243.81 | X11: 243.47 | Y11: 242.26 | Z11: 1062 | AA11: 835 | AB11: 1142 | AC11: 1295 | AD11: 1348 | AE11: 1299 | AF11: 1304 | AG11: 1180 | AH11: 1013 | AI11: 1056 | AJ11: 938 | AK11: 853 | AL11: 943 | AM11: 771 | AN11: 1107 | AO11: 1289 | AP11: 1329 | AQ11: 1272 | AR11: 1289 | AS11: 1183 | AT11: 1017 | AU11: 1068 | AV11: 957 | AW11: 865 | AX11: 4.444072478 | AY11: 3.516529796 | AZ11: 4.765680424 | BA11: 5.404164754 | BB11: 5.626278225 | BC11: 5.414304768 | BD11: 5.425647 | BE11: 4.894843821 | BF11: 4.174221197 | BG11: 4.331241541 | BH11: 3.852630714 | BI11: 3.521010485 | BJ11: 3.946102021 | BK11: 3.246999368 | BL11: 4.619621917 | BM11: 5.379126153 | BN11: 5.546976084 | BO11: 5.301767256 | BP11: 5.363235416 | BQ11: 4.907288339 | BR11: 4.190703807 | BS11: 4.380460194 | BT11: 3.930669076 | BU11: 3.570544044 | BW11: 唐山 | BX11: 3.960557771
A12: 邢台 | B12: 4.46 | C12: 4.38 | D12: 4.85 | E12: 4.92 | F12: 5 | G12: 5.24 | H12: 4.92 | I12: 4.3884 | J12: 4.2412 | K12: 4.14 | L12: 4.05 | M12: 3.96 | N12: 168.75 | O12: 168.77 | P12: 169.98 | Q12: 169.98 | R12: 170.64 | S12: 171.3 | T12: 172.18 | U12: 172.71 | V12: 173.56 | W12: 173.83 | X12: 173.54 | Y12: 173.64 | Z12: 867 | AA12: 479 | AB12: 599 | AC12: 617 | AD12: 608 | AE12: 607 | AF12: 566 | AG12: 606 | AH12: 469 | AI12: 522 | AJ12: 528 | AK12: 482 | AL12: 698 | AM12: 456 | AN12: 581 | AO12: 584 | AP12: 542 | AQ12: 591 | AR12: 561 | AS12: 613 | AT12: 462 | AU12: 522 | AV12: 528 | AW12: 492 | AX12: 5.137777778 | AY12: 2.838182141 | AZ12: 3.523943993 | BA12: 3.629838805 | BB12: 3.563056728 | BC12: 3.543490952 | BD12: 3.287257521 | BE12: 3.50877193 | BF12: 2.702235538 | BG12: 3.002933901 | BH12: 3.042526219 | BI12: 2.775858097 | BJ12: 4.136296296 | BK12: 2.701901997 | BL12: 3.418049182 | BM12: 3.435698317 | BN12: 3.176277543 | BO12: 3.450087566 | BP12: 3.258218144 | BQ12: 3.549302299 | BR12: 2.661903664 | BS12: 3.002933901 | BT12: 3.042526219 | BU12: 2.833448514 | BW12: 邢台 | BX12: 2.959636211
A13: 雄安 | B13: 8.29 | C13: 8.06 | D13: 9.48 | E13: 9.72 | F13: 9.96 | G13: 10.67 | H13: 9.72 | I13: 8.5008 | J13: 8.0684 | K13: 6.532 | L13: 6.26 | M13: 5.98 | N13: 23.06 | O13: 23.1 | P13: 23.39 | Q13: 23.39 | R13: 23.75 | S13: 23.97 | T13: 24.11 | U13: 24.3 | V13: 24.46 | W13: 24.72 | X13: 24.84 | Y13: 24.96 | Z13: 112 | AA13: 75 | AB13: 244 | AC13: 145 | AD13: 165 | AE13: 169 | AF13: 177 | AG13: 151 | AH13: 92 | AI13: 146 | AJ13: 100 | AK13: 61 | AL13: 109 | AM13: 72 | AN13: 241 | AO13: 142 | AP13: 165 | AQ13: 169 | AR13: 177 | AS13: 155 | AT13: 95 | AU13: 148 | AV13: 100 | AW13: 61 | AX13: 4.856895056 | AY13: 3.246753247 | AZ13: 10.43180847 | BA13: 6.19923044 | BB13: 6.947368421 | BC13: 7.050479766 | BD13: 7.341352136 | BE13: 6.21399177 | BF13: 3.761242845 | BG13: 5.906148867 | BH13: 4.025764895 | BI13: 2.443910256 | BJ13: 4.726799653 | BK13: 3.116883117 | BL13: 10.30354853 | BM13: 6.0709705 | BN13: 6.947368421 | BO13: 7.050479766 | BP13: 7.341352136 | BQ13: 6.378600823 | BR13: 3.883892069 | BS13: 5.987055016 | BT13: 4.025764895 | BU13: 2.443910256 | BW13: 雄安 | BX13: 4.152243389
A14: 张家口 | B14: 4.71 | C14: 4.6 | D14: 5.27 | E14: 5.39 | F14: 5.5 | G14: 5.84 | H14: 5.39 | I14: 4.7472 | J14: 4.5448 | K14: 3.9928 | L14: 3.86 | M14: 3.74 | N14: 94.42 | O14: 94.01 | P14: 94.83 | Q14: 94.83 | R14: 94.71 | S14: 94.75 | T14: 94.88 | U14: 94.95 | V14: 96.37 | W14: 95.86 | X14: 95.81 | Y14: 95.48 | Z14: 471 | AA14: 314 | AB14: 304 | AC14: 421 | AD14: 664 | AE14: 664 | AF14: 499 | AG14: 507 | AH14: 407 | AI14: 371 | AJ14: 299 | AK14: 262 | AL14: 433 | AM14: 272 | AN14: 291 | AO14: 353 | AP14: 631 | AQ14: 518 | AR14: 450 | AS14: 411 | AT14: 348 | AU14: 340 | AV14: 269 | AW14: 270 | AX14: 4.988349926 | AY14: 3.340070205 | AZ14: 3.205736581 | BA14: 4.439523358 | BB14: 7.010875304 | BC14: 7.007915567 | BD14: 5.259274874 | BE14: 5.339652449 | BF14: 4.223306008 | BG14: 3.870227415 | BH14: 3.120759837 | BI14: 2.744030163 | BJ14: 4.585892819 | BK14: 2.893309222 | BL14: 3.068649162 | BM14: 3.722450701 | BN14: 6.662443248 | BO14: 5.46701847 | BP14: 4.742833052 | BQ14: 4.328593997 | BR14: 3.611082287 | BS14: 3.54683914 | BT14: 2.807640121 | BU14: 2.827817344 | BW14: 张家口 | BX14: 3.060765535
A15: 全省 | B15: 5.49 | C15: 5.32 | D15: 6.31 | E15: 6.47 | F15: 6.64 | G15: 7.13 | H15: 6.47 | I15: 5.6488 | J15: 5.3544 | K15: 4.2412 | L15: 4.05 | M15: 3.86 | N15: 2119.94 | O15: 2117.46 | P15: 2135.73 | Q15: 2135.73 | R15: 2138.57 | S15: 2142.46 | T15: =SUM(T3:T14) -> 2146.91 | U15: =SUM(U3:U14) -> 2151.61 | V15: 2162.32 | W15: 2169.73 | X15: 2169.81 | Y15: 2165.87 | Z15: 10334 | AA15: 7320 | AB15: 9818 | AC15: 9908 | AD15: 10339 | AE15: 11037 | AF15: 11706 | AG15: 10885 | AH15: 8705 | AI15: 7881 | AJ15: 7698 | AK15: 6439 | AL15: 9496 | AM15: 6966 | AN15: 9572 | AO15: 9545 | AP15: 9995 | AQ15: 10055 | AR15: 10850 | AS15: 10196 | AT15: 8436 | AU15: 7792 | AV15: 7499 | AW15: 6567 | AX15: 4.874666264 | AY15: 3.456972033 | AZ15: 4.597023032 | BA15: 4.63916319 | BB15: 4.834538968 | BC15: 5.151554755 | BD15: 5.452487529 | BE15: 5.059002328 | BF15: 4.025768619 | BG15: 3.632249174 | BH15: 3.547776073 | BI15: 2.972939281 | BJ15: 4.479372058 | BK15: 3.289790598 | BL15: 4.481839933 | BM15: 4.469197886 | BN15: 4.673683817 | BO15: 4.69320314 | BP15: 5.05377496 | BQ15: 4.738777009 | BR15: 3.9013652 | BS15: 3.591230245 | BT15: 3.456062973 | BU15: 3.032037934 | BW15: 全省 | BX15: 3.359777051
O20: 2021年 | P20: 2022年 | Q20: 同比 | R20: 目标值 | V20: 平均用户数
N21: 1月 | P21: 4.874666264 | R21: 5.49 | U21: 保定 | V21: =AVERAGE(N3:Y3) -> 245.1066667 | BH21: =4.4*0.82 -> 3.608
A22: 1-7月，去除2G简网 | N22: 2月 | P22: 3.456972033 | R22: 5.32 | U22: 沧州 | V22: =AVERAGE(N4:Y4) -> 229.0858333
A23: 8-11月，去除2G简网，重复投诉第三件起，系数乘2 | N23: 3月 | P23: 4.597023032 | R23: 6.31 | U23: 承德 | V23: 101.45
A24: 12月，重复投诉第三件起，系数乘2 | N24: 4月 | P24: 4.63916319 | R24: 6.47 | U24: 邯郸 | V24: 266.2083333
N25: 5月 | P25: 4.834538968 | R25: 6.64 | U25: 衡水 | V25: 152.6483333
N26: 6月 | O26: 10.93007967 | P26: 5.151554755 | Q26: =(O26-P26)/O26 -> 0.5286809512 | R26: 7.13 | U26: 廊坊 | V26: 159.7716667
N27: 7月 | O27: 11.91993121 | P27: 5.452487529 | Q27: 0.5425739097 | R27: 6.47 | U27: 秦皇岛 | V27: 104.4591667
N28: 8月 | O28: 11.15699866 | P28: 5.059002328 | Q28: 0.546562433 | R28: 5.6488 | U28: 石家庄 | V28: 356.2266667
N29: 9月 | O29: 10.87297162 | P29: 4.025768619 | Q29: 0.6297453209 | R29: 5.3544 | U29: 唐山 | V29: 240.735
N30: 10月 | O30: 11.14517721 | P30: 3.63 | Q30: 0.6742985839 | R30: 4.2412 | U30: 邢台 | V30: 171.5733333
N31: 11月 | O31: 8.386148923 | P31: 3.55 | Q31: 0.5766829289 | R31: 4.05 | U31: 雄安 | V31: 24.00416667
N32: 12月 | O32: 5.964877393 | P32: 2.97 | Q32: 0.5020853231 | R32: 3.86 | U32: 张家口 | V32: 95.075
U33: 全省 | V33: 2146.345

Sheet 1-2月权重
A1: 地市 | B1: 1月 | C1: 增量 | D1: 114增量 | E1: 总量 | J1: 地市 | K1: 2月 | L1: 2月去除2G简网 | M1: 重复投诉增量 | N1: 考核总量
A2: 保定 | B2: 746 | C2: 8 | E2: =SUM(B2:D2) -> 754 | J2: 保定 | K2: 928 | L2: 661 | M2: 17 | N2: =L2+M2 -> 678
A3: 沧州 | B3: 665 | C3: 3 | E3: =SUM(B3:D3) -> 668 | J3: 沧州 | K3: 692 | L3: 498 | M3: 3 | N3: =L3+M3 -> 501
A4: 承德 | B4: 273 | C4: 2 | E4: 275 | J4: 承德 | K4: 250 | L4: 227 | M4: 4 | N4: 231
A5: 邯郸 | B5: 709 | C5: 17 | E5: 726 | J5: 邯郸 | K5: 575 | L5: 546 | M5: 18 | N5: 564
A6: 衡水 | B6: 344 | C6: 5 | E6: 349 | J6: 衡水 | K6: 352 | L6: 302 | M6: 6 | N6: 308
A7: 廊坊 | B7: 473 | C7: 3 | E7: 476 | J7: 廊坊 | K7: 484 | L7: 471 | M7: 6 | N7: 477
A8: 秦皇岛 | B8: 294 | C8: 2 | E8: 296 | J8: 秦皇岛 | K8: 279 | L8: 275 | M8: 2 | N8: 277
A9: 石家庄 | B9: 1087 | C9: 20 | E9: 1107 | J9: 石家庄 | K9: 1646 | L9: 1250 | M9: 18 | N9: 1268
A10: 唐山 | B10: 606 | C10: 10 | E10: 616 | J10: 唐山 | K10: 670 | L10: 641 | M10: 8 | N10: 649
A11: 邢台 | B11: 465 | C11: 4 | E11: 469 | J11: 邢台 | K11: 425 | L11: 415 | M11: 2 | N11: 417
A12: 雄安 | B12: 59 | C12: 0 | E12: 59 | J12: 雄安 | K12: 101 | L12: 100 | M12: 0 | N12: 100
A13: 张家口 | B13: 314 | C13: 0 | E13: 314 | J13: 张家口 | K13: 254 | L13: 235 | M13: 2 | N13: 237
A14: 全省 | B14: 6035 | C14: 74 | E14: 6109 | J14: 总计 | K14: 6656 | L14: 5621 | M14: 86 | N14: 5707

Sheet Sheet1
A1: 2023年各市分公司移网通信质量投诉率月度指标分解表
A2: 地市 | B2: 1月 | C2: 2月 | D2: 3月 | E2: 4月 | F2: 5月 | G2: 6月 | H2: 7月 | I2: 8月 | J2: 9月 | K2: 10月 | L2: 11月 | M2: 12月
A3: 保定 | B3: 3.2 | C3: 3.5 | D3: 4.3 | E3: 4.5 | F3: 4.3 | G3: 4.6 | H3: 4.9 | I3: 4.3 | J3: 4.3 | K3: 3.1 | L3: 3.1 | M3: 2.9
A4: 沧州 | B4: 3.2 | C4: 3.5 | D4: 4.2 | E4: 4.4 | F4: 4.2 | G4: 4.4 | H4: 4.8 | I4: 4.2 | J4: 4.3 | K4: 3.1 | L4: 3.1 | M4: 2.9
A5: 承德 | B5: 3.2 | C5: 3.5 | D5: 4.2 | E5: 4.4 | F5: 4.3 | G5: 4.4 | H5: 4.8 | I5: 4.2 | J5: 4.3 | K5: 3 | L5: 3 | M5: 2.8
A6: 邯郸 | B6: 3.1 | C6: 3.4 | D6: 4.1 | E6: 4.4 | F6: 4.2 | G6: 4.4 | H6: 4.7 | I6: 4.1 | J6: 4.2 | K6: 3 | L6: 3 | M6: 2.9
A7: 衡水 | B7: 2.4 | C7: 2.7 | D7: 3.2 | E7: 3.4 | F7: 3.2 | G7: 3.4 | H7: 3.6 | I7: 3.2 | J7: 3.3 | K7: 2.5 | L7: 2.5 | M7: 2.4
A8: 廊坊 | B8: 3.3 | C8: 3.6 | D8: 4.4 | E8: 4.7 | F8: 4.5 | G8: 4.7 | H8: 5.1 | I8: 4.4 | J8: 4.4 | K8: 3.1 | L8: 3.1 | M8: 3
A9: 秦皇岛 | B9: 3.1 | C9: 3.4 | D9: 4.1 | E9: 4.3 | F9: 4.1 | G9: 4.3 | H9: 4.7 | I9: 4.1 | J9: 4.2 | K9: 3.1 | L9: 3 | M9: 2.9
A10: 石家庄 | B10: 3.4 | C10: 3.7 | D10: 4.5 | E10: 4.8 | F10: 4.6 | G10: 4.8 | H10: 5.2 | I10: 4.5 | J10: 4.5 | K10: 3.1 | L10: 3.1 | M10: 2.9
A11: 唐山 | B11: 3.2 | C11: 3.5 | D11: 4.3 | E11: 4.5 | F11: 4.3 | G11: 4.5 | H11: 4.9 | I11: 4.2 | J11: 4.3 | K11: 3.1 | L11: 3.1 | M11: 3
A12: 邢台 | B12: 2.9 | C12: 3.1 | D12: 3.8 | E12: 4 | F12: 3.8 | G12: 4 | H12: 4.3 | I12: 3.8 | J12: 3.9 | K12: 3 | L12: 3 | M12: 2.8
A13: 雄安 | B13: 4.3 | C13: 4.7 | D13: 5.7 | E13: 6 | F13: 5.8 | G13: 6.1 | H13: 6.6 | I13: 5.7 | J13: 5.7 | K13: 3.7 | L13: 3.7 | M13: 3.5
A14: 张家口 | B14: 3.2 | C14: 3.4 | D14: 4.2 | E14: 4.4 | F14: 4.2 | G14: 4.4 | H14: 4.8 | I14: 4.2 | J14: 4.2 | K14: 3 | L14: 3 | M14: 2.8
A15: 全省 | B15: 3.2 | C15: 3.4 | D15: 4.2 | E15: 4.4 | F15: 4.2 | G15: 4.4 | H15: 4.8 | I15: 4.2 | J15: 4.2 | K15: 3 | L15: 3 | M15: 2.9

Sheet 2023测算 (hidden)
A1: 万投率 | B1: 1月 | C1: 2月 | D1: 3月 | E1: 4月 | F1: 5月 | G1: 6月 | H1: 7月 | I1: 8月 | J1: 9月 | K1: 10月 | L1: 11月 | M1: 12月
A2: 2021年 | B2: 8.14 | C2: 7.97 | D2: 9.3 | E2: 11.35 | F2: 11.52 | G2: 10.93 | H2: 11.92 | I2: 11.16 | J2: 10.87 | K2: 11.15 | L2: 8.39 | M2: 5.96
A3: 2022年 | B3: 4.87 | C3: 3.46 | D3: 4.6 | E3: 4.64 | F3: 4.83 | G3: 5.15 | H3: 5.45 | I3: 5.06 | J3: 4.03 | K3: 3.63 | L3: 3.81 | M3: 3.85
A4: 同比压降 | B4: 0.4 | C4: 0.57 | D4: 0.51 | E4: 0.59 | F4: 0.58 | G4: 0.53 | H4: 0.54 | I4: 0.55 | J4: 0.63 | K4: =(K2-K3)/K2 -> 0.6744394619 | L4: =(L2-L3)/L2 -> 0.5458879619 | M4: =(M2-M3)/M2 -> 0.3540268456
A5: 2023年 | B5: 4.6 | C5: 3.4 | D5: 4.3 | E5: 4.4 | F5: 4.5 | G5: 4.8 | H5: 5 | I5: 4.5 | J5: 4 | K5: 3.5 | L5: 3.5 | M5: 3.5
A12: 移网质量投诉 | C12: 4季度均值 | D12: 半年均值 | E12: 全年均值
A13: 2022年 | B13: 年底预估 | C13: 3.76 | D13: 4.3 | E13: 4.45
B14: 锲约化 | C14: 4.4 | D14: —— | E14: ——
B15: 集团考核（12月） | C15: 3.89 | D15: 5.51 | E15: 5.94
A16: 2023年 | B16: 明年目标 | C16: 3.5 | D16: 4 | E16: 4.2
B17: 明年压降幅度 | C17: =(C13-C16)/C13 -> 0.06914893617 | D17: =(D13-D16)/D13 -> 0.06976744186 | E17: =(E13-E16)/E13 -> 0.05617977528
A20: 2022年投诉率完成值
A21: 序号 | B21: 地市 | C21: 1月 | D21: 2月 | E21: 3月 | F21: 4月 | G21: 5月 | H21: 6月 | I21: 7月 | J21: 8月 | K21: 9月 | L21: 10月 | M21: 11月 | N21: 12月
A22: 1 | B22: 保定 | C22: 6.85319857 | D22: 4.393073094 | E22: 5.733289807 | F22: 5.092630376 | G22: 5.455214122 | H22: 5.638297872 | I22: 5.977594243 | J22: 6.082625735 | K22: 4.5750305 | L22: 3.541042055 | M22: 3.75501276 | N22: 3.104581795
A23: 2 | B23: 沧州 | C23: 4.359301456 | D23: 3.049398493 | E23: 3.533026114 | F23: 3.914856265 | G23: 4.059510226 | H23: 4.648620283 | I23: 5.383275261 | J23: 5.473565414 | K23: 4.028302296 | L23: 3.925306529 | M23: 3.716875569 | N23: 2.88549023
A24: 3 | B24: 承德 | C24: 5.403800475 | D24: 4.571655734 | E24: 4.30617284 | F24: 4.118518519 | G24: 4.968882742 | H24: 5.373693552 | I24: 6.91966486 | J24: 6.392423794 | K24: 3.955742681 | L24: 3.005678481 | M24: 2.737172569 | N24: 3.091464015
A25: 4 | B25: 邯郸 | C25: 3.487563726 | D25: 2.949330048 | E25: 3.471330362 | F25: 3.320238725 | G25: 3.271397882 | H25: 3.221199023 | I25: 3.690244268 | J25: 3.873134328 | K25: 3.083782278 | L25: 3.13413506 | M25: 3.039715997 | N25: 2.793606157
A26: 5 | B26: 衡水 | C26: 3.54959574 | D26: 2.34976634 | E26: 2.280344352 | F26: 3.003220083 | G26: 2.442218294 | H26: 2.404980341 | I26: 2.854902986 | J26: 2.971913782 | K26: 2.125572269 | L26: 2.341905012 | M26: 2.38576364 | N26: 2.135440475
A27: 6 | B27: 廊坊 | C27: 5.141731283 | D27: 3.868176613 | E27: 5.625593918 | F27: 4.890719037 | G27: 5.663348872 | H27: 5.993096956 | I27: 7.455865782 | J27: 6.345351516 | K27: 5.371824195 | L27: 4.290550939 | M27: 4.081758296 | N27: 3.26603692
A28: 7 | B28: 秦皇岛 | C28: 4.882943144 | D28: 3.609036952 | E28: 3.756895568 | F28: 3.804451208 | G28: 3.634802519 | H28: 3.51495523 | I28: 4.624056559 | J28: 4.658949584 | K28: 4.173446923 | L28: 3.904597038 | M28: 3.353629071 | N28: 3.139534884
A29: 8 | B29: 石家庄 | C29: 5.298051094 | D29: 3.680964076 | E29: 6.596201673 | F29: 6.683811892 | G29: 6.404288334 | H29: 7.78481904 | I29: 7.493598222 | J29: 5.744411641 | K29: 5.039602856 | L29: 3.838729248 | M29: 4.329982096 | N29: 3.040008836
A30: 9 | B30: 唐山 | C30: 4.444072478 | D30: 3.516529796 | E30: 4.765680424 | F30: 5.404164754 | G30: 5.626278225 | H30: 5.414304768 | I30: 5.425647 | J30: 4.894843821 | K30: 4.174221197 | L30: 4.331241541 | M30: 3.852630714 | N30: 3.521010485
A31: 10 | B31: 邢台 | C31: 5.137777778 | D31: 2.838182141 | E31: 3.523943993 | F31: 3.629838805 | G31: 3.563056728 | H31: 3.543490952 | I31: 3.287257521 | J31: 3.50877193 | K31: 2.702235538 | L31: 3.002933901 | M31: 3.042526219 | N31: 2.775858097
A32: 11 | B32: 雄安 | C32: 4.856895056 | D32: 3.246753247 | E32: 10.43180847 | F32: 6.19923044 | G32: 6.947368421 | H32: 7.050479766 | I32: 7.341352136 | J32: 6.21399177 | K32: 3.761242845 | L32: 5.906148867 | M32: 4.025764895 | N32: 2.443910256
A33: 12 | B33: 张家口 | C33: 4.988349926 | D33: 3.340070205 | E33: 3.205736581 | F33: 4.439523358 | G33: 7.010875304 | H33: 7.007915567 | I33: 5.259274874 | J33: 5.339652449 | K33: 4.223306008 | L33: 3.870227415 | M33: 3.120759837 | N33: 2.744030163
B34: 全省 | C34: 4.874666264 | D34: 3.456972033 | E34: 4.597023032 | F34: 4.63916319 | G34: 4.834538968 | H34: 5.151554755 | I34: 5.452487529 | J34: 5.059002328 | K34: 4.025768619 | L34: 3.632249174 | M34: 3.547776073 | N34: 2.972939281
A37: 移网质量投诉压降月度管控目标（万投比）网络线考核版
A38: 序号 | B38: 地市 | C38: 1月 | D38: 2月 | E38: 3月 | F38: 4月 | G38: 5月 | H38: 6月 | I38: 7月 | J38: 8月 | K38: 9月 | L38: 10月 | M38: 11月 | N38: 12月
A39: 1 | B39: 保定 | C39: 4.623744828 | D39: 4.380389837 | E39: 4.867099819 | F39: 4.867099819 | G39: 5.11045481 | H39: 5.353809801 | I39: 5.597164792 | J39: 4.623744828 | K39: 3.893679855 | L39: 3.41 | M39: 3.41 | N39: 3.41
A40: 2 | B40: 沧州 | C40: 4.534696023 | D40: 4.318758117 | E40: 4.750633928 | F40: 4.750633928 | G40: 4.966571834 | H40: 5.18250974 | I40: 5.398447646 | J40: 4.534696023 | K40: 3.886882305 | L40: 3.46 | M40: 3.46 | N40: 3.46
A41: 3 | B41: 承德 | C41: 4.550811684 | D41: 4.3232711 | E41: 4.778352268 | F41: 4.778352268 | G41: 5.005892852 | H41: 5.233433436 | I41: 5.460974021 | J41: 4.550811684 | K41: 3.868189931 | L41: 3.4 | M41: 3.4 | N41: 3.4
A42: 4 | B42: 邯郸 | C42: 4.488873674 | D42: 4.275117785 | E42: 4.702629563 | F42: 4.702629563 | G42: 4.916385453 | H42: 5.130141342 | I42: 5.343897231 | J42: 4.488873674 | K42: 3.847606006 | L42: 3.4 | M42: 3.4 | N42: 3.4
A43: 5 | B43: 衡水 | C43: 3.482032008 | D43: 3.31622096 | E43: 3.647843056 | F43: 3.647843056 | G43: 3.813654104 | H43: 3.979465152 | I43: 4.1452762 | J43: 3.482032008 | K43: 2.984598864 | L43: 2.75 | M43: 2.75 | N43: 2.75
A44: 6 | B44: 廊坊 | C44: 4.780697308 | D44: 4.52908166 | E44: 5.032312956 | F44: 5.032312956 | G44: 5.283928603 | H44: 5.535544251 | I44: 5.787159899 | J44: 4.780697308 | K44: 4.025850364 | L44: 3.54 | M44: 3.54 | N44: 3.54
A45: 7 | B45: 秦皇岛 | C45: 4.439617073 | D45: 4.228206736 | E45: 4.65102741 | F45: 4.65102741 | G45: 4.862437747 | H45: 5.073848083 | I45: 5.28525842 | J45: 4.439617073 | K45: 3.805386063 | L45: 3.38 | M45: 3.38 | N45: 3.38
A46: 8 | B46: 石家庄 | C46: 4.871812709 | D46: 4.615401513 | E46: 5.128223904 | F46: 5.128223904 | G46: 5.384635099 | H46: 5.641046294 | I46: 5.897457489 | J46: 4.871812709 | K46: 4.102579123 | L46: 3.6 | M46: 3.6 | N46: 3.6
A47: 9 | B47: 唐山 | C47: 4.5998492 | D47: 4.36985674 | E47: 4.82984166 | F47: 4.82984166 | G47: 5.05983412 | H47: 5.28982658 | I47: 5.51981904 | J47: 4.5998492 | K47: 3.90987182 | L47: 3.46 | M47: 3.46 | N47: 3.46
A48: 10 | B48: 邢台 | C48: 4.133718188 | D48: 3.936874464 | E48: 4.330561911 | F48: 4.330561911 | G48: 4.527405634 | H48: 4.724249357 | I48: 4.92109308 | J48: 4.133718188 | K48: 3.543187018 | L48: 3.149499571 | M48: 3.149499571 | N48: 3.149499571
A49: 11 | B49: 雄安 | C49: 6.172875373 | D49: 5.847987196 | E49: 6.497763551 | F49: 6.497763551 | G49: 6.822651728 | H49: 7.147539906 | I49: 7.472428083 | J49: 6.172875373 | K49: 5.198210841 | L49: 4.548434486 | M49: 4.548434486 | N49: 4.548434486
A50: 12 | B50: 张家口 | C50: 4.534246584 | D50: 4.307534255 | E50: 4.760958914 | F50: 4.760958914 | G50: 4.987671243 | H50: 5.214383572 | I50: 5.441095901 | J50: 4.534246584 | K50: 3.854109597 | L50: 3.400684938 | M50: 3.400684938 | N50: 3.400684938
B51: 全省 | C51: 4.529963208 | D51: 4.303168542 | E51: 4.756757873 | F51: 4.756757873 | G51: 4.983552539 | H51: 5.210347204 | I51: 5.43714187 | J51: 4.529963208 | K51: 3.849579211 | L51: 3.39598988 | M51: 3.39598988 | N51: 3.39598988 | P51: 3.05 | Q51: =P51/N51 -> 0.8981181062
A53: 移网质量投诉压降月度管控目标（万投比）客服考核版（4.4-3.7压降15%）
A54: 序号 | B54: 地市 | C54: 1月 | D54: 2月 | E54: 3月 | F54: 4月 | G54: 5月 | H54: 6月 | I54: 7月 | J54: 8月 | K54: 9月 | L54: 10月 | M54: 11月 | N54: 12月 | Q54: 地市 | R54: Q4目标值
A55: 1 | B55: 保定 | C55: =C39*0.7 -> 3.236621379 | D55: =D39*0.7 -> 3.066272886 | E55: =E39*0.8 -> 3.893679855 | F55: =F39*0.85 -> 4.137034846 | G55: =G39*0.85 -> 4.343886588 | H55: =H39*0.85 -> 4.550738331 | I55: =I39*0.9 -> 5.037448312 | J55: =J39*0.95 -> 4.392557586 | K55: =K39*1.1 -> 4.283047841 | L55: 3.08 | M55: 3.05 | N55: 2.9 | O55: =R55/N55 -> 1.051724138 | Q55: 保定 | R55: 3.05 | S55: =R55/1.05 -> 2.904761905 | T55: =LEFT(S55,4) -> 2.90
A56: 2 | B56: 沧州 | C56: =C40*0.7 -> 3.174287216 | D56: =D40*0.7 -> 3.023130682 | E56: =E40*0.8 -> 3.800507143 | F56: =F40*0.85 -> 4.038038839 | G56: =G40*0.85 -> 4.221586059 | H56: =H40*0.85 -> 4.405133279 | I56: =I40*0.9 -> 4.858602881 | J56: =J40*0.95 -> 4.307961222 | K56: =K40*1.1 -> 4.275570536 | L56: 3.08 | M56: 3.05 | N56: 2.9 | O56: =R56/N56 -> 1.051724138 | Q56: 沧州 | R56: 3.05 | S56: =R56/1.05 -> 2.904761905 | T56: =LEFT(S56,4) -> 2.90
A57: 3 | B57: 承德 | C57: 3.185568179 | D57: 3.02628977 | E57: 3.822681814 | F57: 4.061599428 | G57: 4.255008924 | H57: 4.448418421 | I57: 4.914876619 | J57: 4.3232711 | K57: 4.255008924 | L57: 2.98 | M57: 2.96 | N57: 2.81 | O57: 1.053380783 | Q57: 承德 | R57: 2.96 | S57: 2.819047619 | T57: 2.81
A58: 4 | B58: 邯郸 | C58: 3.142211572 | D58: 2.992582449 | E58: 3.762103651 | F58: 3.997235129 | G58: 4.178927635 | H58: 4.360620141 | I58: 4.809507508 | J58: 4.26442999 | K58: 4.232366607 | L58: 3.03 | M58: 3 | N58: 2.85 | O58: 1.052631579 | Q58: 邯郸 | R58: 3 | S58: 2.857142857 | T58: 2.85
A59: 5 | B59: 衡水 | C59: 2.437422406 | D59: 2.321354672 | E59: 2.918274445 | F59: 3.100666598 | G59: 3.241605988 | H59: 3.382545379 | I59: 3.73074858 | J59: 3.307930407 | K59: 3.28305875 | L59: 2.48 | M59: 2.46 | N59: 2.4 | O59: 1.025 | Q59: 衡水 | R59: 2.46 | S59: 2.342857143 | T59: 2.34
A60: 6 | B60: 廊坊 | C60: 3.346488115 | D60: 3.170357162 | E60: 4.025850364 | F60: 4.277466012 | G60: 4.491339313 | H60: 4.705212613 | I60: 5.208443909 | J60: 4.541662442 | K60: 4.428435401 | L60: 3.13 | M60: 3.1 | N60: 2.95 | O60: 1.050847458 | Q60: 廊坊 | R60: 3.1 | S60: 2.952380952 | T60: 2.95
A61: 7 | B61: 秦皇岛 | C61: 3.107731951 | D61: 2.959744715 | E61: 3.720821928 | F61: 3.953373298 | G61: 4.133072085 | H61: 4.312770871 | I61: 4.756732578 | J61: 4.217636219 | K61: 4.185924669 | L61: 3.05 | M61: 3.02 | N61: 2.87 | O61: 1.052264808 | Q61: 秦皇岛 | R61: 3.02 | S61: 2.876190476 | T61: 2.87
A62: 8 | B62: 石家庄 | C62: 3.410268896 | D62: 3.230781059 | E62: 4.102579123 | F62: 4.358990318 | G62: 4.576939834 | H62: 4.79488935 | I62: 5.30771174 | J62: 4.628222073 | K62: 4.512837035 | L62: 3.11 | M62: 3.08 | N62: 2.93 | O62: 1.051194539 | Q62: 石家庄 | R62: 3.08 | S62: 2.933333333 | T62: 2.93
A63: 9 | B63: 唐山 | C63: 3.21989444 | D63: 3.058899718 | E63: 3.863873328 | F63: 4.105365411 | G63: 4.300859002 | H63: 4.496352593 | I63: 4.967837136 | J63: 4.36985674 | K63: 4.300859002 | L63: 3.13 | M63: 3.1 | N63: 2.95 | O63: 1.050847458 | Q63: 唐山 | R63: 3.1 | S63: 2.952380952 | T63: 2.95
A64: 10 | B64: 邢台 | C64: 2.893602731 | D64: 2.755812125 | E64: 3.464449529 | F64: 3.680977624 | G64: 3.848294789 | H64: 4.015611954 | I64: 4.428983772 | J64: 3.927032278 | K64: 3.89750572 | L64: 2.97 | M64: 2.95 | N64: 2.8 | O64: 1.053571429 | Q64: 邢台 | R64: 2.95 | S64: 2.80952381 | T64: 2.80
A65: 11 | B65: 雄安 | C65: 4.321012761 | D65: 4.093591037 | E65: 5.198210841 | F65: 5.523099018 | G65: 5.799253969 | H65: 6.07540892 | I65: 6.725185275 | J65: 5.864231605 | K65: 5.718031925 | L65: 3.68 | M65: 3.65 | N65: 3.47 | O65: 1.051873199 | Q65: 雄安 | R65: 3.65 | S65: 3.476190476 | T65: 3.47
A66: 12 | B66: 张家口 | C66: 3.173972609 | D66: 3.015273979 | E66: 3.808767131 | F66: 4.046815076 | G66: 4.239520556 | H66: 4.432226036 | I66: 4.896986311 | J66: 4.307534255 | K66: 4.239520556 | L66: 3 | M66: 2.97 | N66: 2.82 | O66: 1.053191489 | Q66: 张家口 | R66: 2.97 | S66: 2.828571429 | T66: 2.82
B67: 全省 | C67: 3.170974245 | D67: 3.01221798 | E67: 3.805406299 | F67: 4.043244192 | G67: 4.236019658 | H67: 4.428795123 | I67: 4.893427683 | J67: 4.303465047 | K67: 4.234537132 | L67: 3.08 | M67: 3.05 | N67: 2.9 | O67: 1.051724138 | Q67: 全省 | R67: 3.05 | S67: 2.904761905 | T67: 2.90
A72: 移网质量投诉压降月度管控目标（万投比）客服考核版（4.4-3.7压降15%）
A73: 序号 | B73: 地市 | C73: 1月 | D73: 2月 | E73: 3月 | F73: 4月 | G73: 5月 | H73: 6月 | I73: 7月 | J73: 8月 | K73: 9月 | L73: 10月 | M73: 11月 | N73: 12月
A74: 1 | B74: 保定 | C74: 3.236621379 | D74: 3.066272886 | E74: 3.893679855 | F74: 4.137034846 | G74: 4.343886588 | H74: 4.550738331 | I74: 5.037448312 | J74: 4.392557586 | K74: 4.283047841 | L74: 3.08 | M74: 3.05 | N74: 2.9
A75: 2 | B75: 沧州 | C75: 3.174287216 | D75: 3.023130682 | E75: 3.800507143 | F75: 4.038038839 | G75: 4.221586059 | H75: 4.405133279 | I75: 4.858602881 | J75: 4.307961222 | K75: 4.275570536 | L75: 3.08 | M75: 3.05 | N75: 2.9
A76: 3 | B76: 承德 | C76: 3.185568179 | D76: 3.02628977 | E76: 3.822681814 | F76: 4.061599428 | G76: 4.255008924 | H76: 4.448418421 | I76: 4.914876619 | J76: 4.3232711 | K76: 4.255008924 | L76: 2.98 | M76: 2.96 | N76: 2.81
A77: 4 | B77: 邯郸 | C77: 3.142211572 | D77: 2.992582449 | E77: 3.762103651 | F77: 3.997235129 | G77: 4.178927635 | H77: 4.360620141 | I77: 4.809507508 | J77: 4.26442999 | K77: 4.232366607 | L77: 3.03 | M77: 3 | N77: 2.85
A78: 5 | B78: 衡水 | C78: 2.437422406 | D78: 2.321354672 | E78: 2.918274445 | F78: 3.100666598 | G78: 3.241605988 | H78: 3.382545379 | I78: 3.73074858 | J78: 3.307930407 | K78: 3.28305875 | L78: 2.48 | M78: 2.46 | N78: 2.5
A79: 6 | B79: 廊坊 | C79: 3.346488115 | D79: 3.170357162 | E79: 4.025850364 | F79: 4.277466012 | G79: 4.491339313 | H79: 4.705212613 | I79: 5.208443909 | J79: 4.541662442 | K79: 4.428435401 | L79: 3.13 | M79: 3.1 | N79: 2.95
A80: 7 | B80: 秦皇岛 | C80: 3.107731951 | D80: 2.959744715 | E80: 3.720821928 | F80: 3.953373298 | G80: 4.133072085 | H80: 4.312770871 | I80: 4.756732578 | J80: 4.217636219 | K80: 4.185924669 | L80: 3.05 | M80: 3.02 | N80: 2.87
A81: 8 | B81: 石家庄 | C81: 3.410268896 | D81: 3.230781059 | E81: 4.102579123 | F81: 4.358990318 | G81: 4.576939834 | H81: 4.79488935 | I81: 5.30771174 | J81: 4.628222073 | K81: 4.512837035 | L81: 3.11 | M81: 3.08 | N81: 2.93
A82: 9 | B82: 唐山 | C82: 3.21989444 | D82: 3.058899718 | E82: 3.863873328 | F82: 4.105365411 | G82: 4.300859002 | H82: 4.496352593 | I82: 4.967837136 | J82: 4.36985674 | K82: 4.300859002 | L82: 3.13 | M82: 3.1 | N82: 2.95
A83: 10 | B83: 邢台 | C83: 2.893602731 | D83: 2.755812125 | E83: 3.464449529 | F83: 3.680977624 | G83: 3.848294789 | H83: 4.015611954 | I83: 4.428983772 | J83: 3.927032278 | K83: 3.89750572 | L83: 2.97 | M83: 2.95 | N83: 2.8
A84: 11 | B84: 雄安 | C84: 4.321012761 | D84: 4.093591037 | E84: 5.198210841 | F84: 5.523099018 | G84: 5.799253969 | H84: 6.07540892 | I84: 6.725185275 | J84: 5.864231605 | K84: 5.718031925 | L84: 3.68 | M84: 3.65 | N84: 3.47
A85: 12 | B85: 张家口 | C85: 3.173972609 | D85: 3.015273979 | E85: 3.808767131 | F85: 4.046815076 | G85: 4.239520556 | H85: 4.432226036 | I85: 4.896986311 | J85: 4.307534255 | K85: 4.239520556 | L85: 3 | M85: 2.97 | N85: 2.82
B86: 全省 | C86: 3.170974245 | D86: 3.01221798 | E86: 3.805406299 | F86: 4.043244192 | G86: 4.236019658 | H86: 4.428795123 | I86: 4.893427683 | J86: 4.303465047 | K86: 4.234537132 | L86: 3.08 | M86: 3.05 | N86: 2.9
A88: 移网质量投诉压降月度管控目标（万投比）客服考核版（4.4-3.7压降15%）
A89: 序号 | B89: 地市 | C89: 1月 | D89: 2月 | E89: 3月 | F89: 4月 | G89: 5月 | H89: 6月 | I89: 7月 | J89: 8月 | K89: 9月 | L89: 10月 | M89: 11月 | N89: 12月 | O89: 用户数
A90: 1 | B90: 保定 | C90: =ROUND(C74,1) -> 3.2 | D90: =ROUND(D74,1) -> 3.1 | E90: 3.9 | F90: 4.1 | G90: 4.3 | H90: 4.6 | I90: 5 | J90: 4.4 | K90: 4.3 | L90: 3.1 | M90: 3.1 | N90: 2.9 | O90: 245.1066667
A91: 2 | B91: 沧州 | C91: =ROUND(C75,1) -> 3.2 | D91: =ROUND(D75,1) -> 3 | E91: 3.8 | F91: 4 | G91: 4.2 | H91: 4.4 | I91: 4.9 | J91: 4.3 | K91: 4.3 | L91: 3.1 | M91: 3.1 | N91: 2.9 | O91: 229.0858333
A92: 3 | B92: 承德 | C92: 3.2 | D92: =ROUND(D76,1) -> 3 | E92: 3.8 | F92: 4.1 | G92: 4.3 | H92: 4.4 | I92: 4.9 | J92: 4.3 | K92: 4.3 | L92: 3 | M92: 3 | N92: 2.8 | O92: 101.45
A93: 4 | B93: 邯郸 | C93: 3.1 | D93: =ROUND(D77,1) -> 3 | E93: 3.8 | F93: 4 | G93: 4.2 | H93: 4.4 | I93: 4.8 | J93: 4.3 | K93: 4.2 | L93: 3 | M93: 3 | N93: 2.9 | O93: 266.2083333
A94: 5 | B94: 衡水 | C94: 2.4 | D94: =ROUND(D78,1) -> 2.3 | E94: 2.9 | F94: 3.1 | G94: 3.2 | H94: 3.4 | I94: 3.7 | J94: 3.3 | K94: 3.3 | L94: 2.5 | M94: 2.5 | N94: 2.5 | O94: 152.6483333
A95: 6 | B95: 廊坊 | C95: 3.3 | D95: =ROUND(D79,1) -> 3.2 | E95: 4 | F95: 4.3 | G95: 4.5 | H95: 4.7 | I95: 5.2 | J95: 4.5 | K95: 4.4 | L95: 3.1 | M95: 3.1 | N95: 3 | O95: 159.7716667
A96: 7 | B96: 秦皇岛 | C96: 3.1 | D96: =ROUND(D80,1) -> 3 | E96: 3.7 | F96: 4 | G96: 4.1 | H96: 4.3 | I96: 4.8 | J96: 4.2 | K96: 4.2 | L96: 3.1 | M96: 3 | N96: 2.9 | O96: 104.4591667
A97: 8 | B97: 石家庄 | C97: 3.4 | D97: =ROUND(D81,1) -> 3.2 | E97: 4.1 | F97: 4.4 | G97: 4.6 | H97: 4.8 | I97: 5.3 | J97: 4.6 | K97: 4.5 | L97: 3.1 | M97: 3.1 | N97: 2.9 | O97: 356.2266667
A98: 9 | B98: 唐山 | C98: 3.2 | D98: =ROUND(D82,1) -> 3.1 | E98: 3.9 | F98: 4.1 | G98: 4.3 | H98: 4.5 | I98: 5 | J98: 4.4 | K98: 4.3 | L98: 3.1 | M98: 3.1 | N98: 3 | O98: 240.735
A99: 10 | B99: 邢台 | C99: 2.9 | D99: =ROUND(D83,1) -> 2.8 | E99: 3.5 | F99: 3.7 | G99: 3.8 | H99: 4 | I99: 4.4 | J99: 3.9 | K99: 3.9 | L99: 3 | M99: 3 | N99: 2.8 | O99: 171.5733333
A100: 11 | B100: 雄安 | C100: 4.3 | D100: =ROUND(D84,1) -> 4.1 | E100: 5.2 | F100: 5.5 | G100: 5.8 | H100: 6.1 | I100: 6.7 | J100: 5.9 | K100: 5.7 | L100: 3.7 | M100: 3.7 | N100: 3.5 | O100: 24.00416667
A101: 12 | B101: 张家口 | C101: 3.2 | D101: =ROUND(D85,1) -> 3 | E101: 3.8 | F101: 4 | G101: 4.2 | H101: 4.4 | I101: 4.9 | J101: 4.3 | K101: 4.2 | L101: 3 | M101: 3 | N101: 2.8 | O101: 95.075
B102: 全省 | C102: 3.2 | D102: =ROUND(D86,1) -> 3 | E102: 3.8 | F102: 4 | G102: 4.2 | H102: 4.4 | I102: 4.9 | J102: 4.3 | K102: 4.2 | L102: 3 | M102: 3 | N102: 2.9 | O102: 2146.345
A104: 移网质量投诉压降月度管控目标（投诉量）客服考核版（4.4-3.7压降15%）
A105: 序号 | B105: 地市 | C105: 1月 | D105: 2月 | E105: 3月 | F105: 4月 | G105: 5月 | H105: 6月 | I105: 7月 | J105: 8月 | K105: 9月 | L105: 10月 | M105: 11月 | N105: 12月
A106: 1 | B106: 保定 | C106: =C90*O90 -> 784.3413333 | D106: =D90*O90 -> 759.8306667 | E106: =E90*O90 -> 955.916 | F106: =F90*O90 -> 1004.937333 | G106: =G90*O90 -> 1053.958667 | H106: =H90*O90 -> 1127.490667 | I106: =I90*O90 -> 1225.533333 | J106: =J90*O90 -> 1078.469333 | K106: =K90*O90 -> 1053.958667 | L106: =L90*O90 -> 759.8306667 | M106: =M90*O90 -> 759.8306667 | N106: =N90*O90 -> 710.8093333
A107: 2 | B107: 沧州 | C107: =C91*O91 -> 733.0746667 | D107: =D91*O91 -> 687.2575 | E107: =E91*O91 -> 870.5261667 | F107: =F91*O91 -> 916.3433333 | G107: =G91*O91 -> 962.1605 | H107: =H91*O91 -> 1007.977667 | I107: =I91*O91 -> 1122.520583 | J107: =J91*O91 -> 985.0690833 | K107: =K91*O91 -> 985.0690833 | L107: =L91*O91 -> 710.1660833 | M107: =M91*O91 -> 710.1660833 | N107: =N91*O91 -> 664.3489167
A108: 3 | B108: 承德 | C108: 324.64 | D108: 304.35 | E108: 385.51 | F108: 415.945 | G108: 436.235 | H108: 446.38 | I108: 497.105 | J108: 436.235 | K108: 436.235 | L108: 304.35 | M108: 304.35 | N108: 284.06
A109: 4 | B109: 邯郸 | C109: 825.2458333 | D109: 798.625 | E109: 1011.591667 | F109: 1064.833333 | G109: 1118.075 | H109: 1171.316667 | I109: 1277.8 | J109: 1144.695833 | K109: 1118.075 | L109: 798.625 | M109: 798.625 | N109: 772.0041667
A110: 5 | B110: 衡水 | C110: 366.356 | D110: 351.0911667 | E110: 442.6801667 | F110: 473.2098333 | G110: 488.4746667 | H110: 519.0043333 | I110: 564.7988333 | J110: 503.7395 | K110: 503.7395 | L110: 381.6208333 | M110: 381.6208333 | N110: 381.6208333
A111: 6 | B111: 廊坊 | C111: 527.2465 | D111: 511.2693333 | E111: 639.0866667 | F111: 687.0181667 | G111: 718.9725 | H111: 750.9268333 | I111: 830.8126667 | J111: 718.9725 | K111: 702.9953333 | L111: 495.2921667 | M111: 495.2921667 | N111: 479.315
A112: 7 | B112: 秦皇岛 | C112: 323.8234167 | D112: 313.3775 | E112: 386.4989167 | F112: 417.8366667 | G112: 428.2825833 | H112: 449.1744167 | I112: 501.404 | J112: 438.7285 | K112: 438.7285 | L112: 323.8234167 | M112: 313.3775 | N112: 302.9315833
A113: 8 | B113: 石家庄 | C113: 1211.170667 | D113: 1139.925333 | E113: 1460.529333 | F113: 1567.397333 | G113: 1638.642667 | H113: 1709.888 | I113: 1888.001333 | J113: 1638.642667 | K113: 1603.02 | L113: 1104.302667 | M113: 1104.302667 | N113: 1033.057333
A114: 9 | B114: 唐山 | C114: 770.352 | D114: 746.2785 | E114: 938.8665 | F114: 987.0135 | G114: 1035.1605 | H114: 1083.3075 | I114: 1203.675 | J114: 1059.234 | K114: 1035.1605 | L114: 746.2785 | M114: 746.2785 | N114: 722.205
A115: 10 | B115: 邢台 | C115: 497.5626667 | D115: 480.4053333 | E115: 600.5066667 | F115: 634.8213333 | G115: 651.9786667 | H115: 686.2933333 | I115: 754.9226667 | J115: 669.136 | K115: 669.136 | L115: 514.72 | M115: 514.72 | N115: 480.4053333
A116: 11 | B116: 雄安 | C116: 103.2179167 | D116: 98.41708333 | E116: 124.8216667 | F116: 132.0229167 | G116: 139.2241667 | H116: 146.4254167 | I116: 160.8279167 | J116: 141.6245833 | K116: 136.82375 | L116: 88.81541667 | M116: 88.81541667 | N116: 84.01458333
A117: 12 | B117: 张家口 | C117: 304.24 | D117: 285.225 | E117: 361.285 | F117: 380.3 | G117: 399.315 | H117: 418.33 | I117: 465.8675 | J117: 408.8225 | K117: 399.315 | L117: 285.225 | M117: 285.225 | N117: 266.21
B118: 全省 | C118: =SUM(C106:C117) -> 6771.271 | D118: =SUM(D106:D117) -> 6476.052417 | E118: 8177.81875 | F118: 8681.67875 | G118: 9070.479917 | H118: 9516.514833 | I118: 10493.26883 | J118: 9223.3695 | K118: 9082.256333 | L118: 6513.04975 | M118: 6502.603833 | N118: 6180.982083
C120: 3.2 | D120: 3 | E120: 3.8 | F120: 4 | G120: 4.2 | H120: 4.4 | I120: 4.9 | J120: 4.3 | K120: 4.2 | L120: 3 | M120: 3 | N120: 2.9
